bitfinex/quotes_BTCUSD_20241011
["timestamp","ask_amount","ask_price","bid_price","bid_amount"]
[1728685763264,0.46574291,62563.0,62562.0,0.00092]
[1728685764635,0.49076895,62563.0,62562.0,0.00092]
[1728685766273,0.63989171,62563.0,62562.0,0.00092]
[1728685767162,0.66289171,62563.0,62562.0,0.00092]
[1728685770208,0.51376895,62563.0,62562.0,0.00092]
[1728685775016,0.49076895,62563.0,62562.0,0.00092]
[1728685775534,1.47623329,62563.0,62562.0,0.01588863]
[1728685775791,1.38456671,62563.0,62562.0,0.00092]
[1728685776334,1.38956671,62563.0,62562.0,0.00092]
[1728685776596,1.71412071,62563.0,62562.0,0.00092]
[1728685776846,1.64339671,62563.0,62562.0,0.00092]
[1728685778959,1.38934171,62563.0,62562.0,0.00092]
[1728685779463,0.74459171,62563.0,62562.0,0.00092]
[1728685779711,0.64489171,62563.0,62562.0,0.00092]
[1728685779957,0.63989171,62563.0,62562.0,0.00092]
[1728685780897,0.66289171,62563.0,62562.0,0.00092]
[1728685781158,0.82426142,62563.0,62562.0,0.00092]
[1728685782084,0.66289171,62563.0,62562.0,0.00092]
[1728685783314,0.88915671,62563.0,62562.0,0.00092]
[1728685783579,0.84569271,62563.0,62562.0,0.00092]
[1728685784078,0.96035227,62563.0,62562.0,0.00092]
[1728685790113,0.96235227,62563.0,62562.0,0.00092]
[1728685790322,1.16867096,62563.0,62562.0,0.00092]
[1728685790541,1.12172198,62563.0,62562.0,0.00092]
[1728685790743,1.19214545,62563.0,62562.0,0.00092]
[1728685790956,1.16883484,62563.0,62562.0,0.00092]
[1728685791154,1.16883374,62563.0,62562.0,0.00092]
[1728685791354,1.21561994,62563.0,62562.0,0.00092]
[1728685792045,1.12172198,62563.0,62562.0,0.00092]
[1728685792262,1.00706242,62563.0,62562.0,0.00092]
[1728685792487,1.11620599,62563.0,62562.0,0.00092]
[1728685793124,0.95483628,62563.0,62562.0,0.00092]
[1728685793546,1.07277342,62563.0,62562.0,0.00092]
[1728685795572,0.95483628,62563.0,62562.0,0.00092]
[1728685796018,1.07278336,62563.0,62562.0,0.00092]
[1728685796249,0.95483628,62563.0,62562.0,0.00092]
[1728685796954,1.11620599,62563.0,62562.0,0.00092]
[1728685797430,0.95483628,62563.0,62562.0,0.00092]
[1728685800645,1.03773628,62563.0,62562.0,0.00092]
[1728685800873,1.35084174,62563.0,62562.0,0.00092]
[1728685801307,1.33684174,62563.0,62562.0,0.00092]
[1728685802231,1.35084174,62563.0,62562.0,0.00092]
[1728685802450,1.3719346,62563.0,62562.0,0.00092]
[1728685802666,1.3579346,62563.0,62562.0,0.00092]
[1728685802901,1.18571898,62563.0,62562.0,0.00092]
[1728685803129,1.08231288,62563.0,62562.0,0.00092]
[1728685803351,0.90383628,62563.0,62562.0,0.00092]
[1728685803572,0.84181839,62563.0,62562.0,0.00092]
[1728685803811,0.73291976,62563.0,62562.0,0.00092]
[1728685804012,0.79908255,62563.0,62562.0,0.00092]
[1728685804225,0.73291976,62563.0,62562.0,0.00092]
[1728685804437,0.71891976,62563.0,62562.0,0.00092]
[1728685804657,0.73291976,62563.0,62562.0,0.00092]
[1728685804876,0.76608242,62563.0,62562.0,0.00092]
[1728685805100,0.71891976,62563.0,62562.0,0.00092]
[1728685805351,0.77911819,62563.0,62562.0,0.00092]
[1728685805810,0.75095448,62563.0,62562.0,0.00092]
[1728685806058,0.77395448,62563.0,62562.0,0.00092]
[1728685806281,0.75995448,62563.0,62562.0,0.00092]
[1728685806745,0.77395448,62563.0,62562.0,0.00092]
[1728685807635,0.76895448,62563.0,62562.0,0.00092]
[1728685807856,0.77395448,62563.0,62562.0,0.00092]
[1728685808077,0.76895448,62563.0,62562.0,0.00092]
[1728685808959,0.61983172,62563.0,62562.0,0.00092]
[1728685809221,0.66699937,62563.0,62562.0,0.08072]
[1728685809660,0.61983172,62563.0,62562.0,0.08072]
[1728685809882,0.59683172,62563.0,62562.0,0.08072]
[1728685810097,0.49683172,62563.0,62562.0,0.17992]
[1728685810333,0.49683172,62563.0,62562.0,0.26112]
[1728685810782,0.47180568,62563.0,62562.0,0.26112]
[1728685810996,0.36477763,62563.0,62562.0,0.26112]
[1728685811783,0.35077763,62563.0,62562.0,0.26112]
[1728685812027,0.46477763,62563.0,62562.0,0.26112]
[1728685812275,0.45174291,62563.0,62562.0,0.26112]
[1728685812506,0.43774291,62563.0,62562.0,0.26112]
[1728685812748,0.45174291,62563.0,62562.0,0.26112]
[1728685812989,0.29190491,62563.0,62562.0,0.26112]
[1728685813257,0.0166809,62563.0,62562.0,0.26112]
[1728685813506,0.0296809,62563.0,62562.0,0.57328015]
[1728685813766,0.0406809,62563.0,62562.0,0.57008376]
[1728685814246,0.0406809,62563.0,62562.0,0.58504674]
[1728685814471,0.0497543,62575.0,62565.0,0.799158]
[1728685814694,0.23664158,62571.0,62569.0,0.14912276]
[1728685814907,0.23664158,62571.0,62570.0,0.340221]
[1728685815131,0.23828158,62578.0,62575.0,0.159805]
[1728685815368,0.23828158,62578.0,62563.0,0.01493968]
[1728685815369,0.31034677,62576.0,62563.0,0.01493968]
[1728685815594,0.159838,62563.0,62562.0,0.08072]
[1728685815805,0.32106201,62563.0,62562.0,0.08072]
[1728685816669,0.16122401,62563.0,62562.0,0.08072]
[1728685817252,0.15622401,62563.0,62562.0,0.08072]
[1728685817451,0.17922401,62563.0,62562.0,0.08172]
[1728685817855,0.17922401,62563.0,62562.0,0.39068376]
[1728685818890,0.023,62563.0,62562.0,0.39068376]
[1728685819163,0.023,62563.0,62562.0,0.57108376]
[1728685821470,0.02464,62563.0,62562.0,0.57108376]
[1728685822438,0.33664158,62571.0,62570.0,0.159821]
[1728685822439,0.23664158,62571.0,62570.0,0.159821]
[1728685822659,0.23664158,62571.0,62570.0,0.49014376]
[1728685823000,0.39808258,62578.0,62574.0,0.15981]
[1728685823001,0.1,62577.0,62574.0,0.15981]
[1728685823224,0.26122401,62577.0,62574.0,0.15981]
[1728685823464,0.42102701,62577.0,62574.0,0.15981]
[1728685823668,0.26122401,62577.0,62570.0,0.64996376]
[1728685823868,0.159805,62576.0,62572.0,0.159814]
[1728685824522,0.26122401,62577.0,62573.0,0.159812]
[1728685824725,0.42502701,62577.0,62573.0,0.159812]
[1728685825888,0.42102701,62577.0,62573.0,0.159812]
[1728685826112,0.16122401,62577.0,62576.0,0.159805]
[1728685826612,0.16122401,62577.0,62576.0,0.239405]
[1728685826860,0.00164,62578.0,62577.0,0.159803]
[1728685827126,0.00164,62578.0,62577.0,0.31212138]
[1728685828507,0.00164,62578.0,62577.0,0.41872138]
[1728685828727,0.00164,62578.0,62577.0,0.41552576]
[1728685829657,0.00164,62578.0,62577.0,0.41752576]
[1728685830091,0.00164,62578.0,62577.0,0.49712576]
[1728685831035,0.00164,62578.0,62577.0,0.49912576]
[1728685831479,0.00164,62578.0,62577.0,0.51402378]
[1728685832182,0.00164,62578.0,62577.0,0.51202378]
[1728685832403,0.0496172,62590.0,62587.0,0.340977]
[1728685832614,0.0496172,62590.0,62587.0,0.345977]
[1728685832827,0.23664158,62595.0,62587.0,0.345977]
[1728685833041,0.23664158,62595.0,62594.0,0.159759]
[1728685833291,0.23664158,62595.0,62594.0,0.30888176]
[1728685833511,0.00164,62596.0,62593.0,0.319524]
[1728685833724,0.00164,62596.0,62595.0,0.159757]
[1728685833939,0.00164,62596.0,62595.0,0.239357]
[1728685835691,0.00164,62596.0,62595.0,0.0796]
[1728685835960,0.00864,62596.0,62595.0,0.0806]
[1728685836172,0.00164,62596.0,62595.0,0.240357]
[1728685836419,0.00464,62596.0,62595.0,0.0806]
[1728685836629,0.00464,62596.0,62595.0,0.0796]
[1728685836858,0.00464,62596.0,62595.0,0.340957]
[1728685845241,0.00464,62596.0,62588.0,0.321549]
[1728685845242,0.16586401,62596.0,62589.0,0.0769]
[1728685845457,0.16586401,62596.0,62590.0,0.159768]
[1728685845458,0.15976,62594.0,62590.0,0.159768]
[1728685845662,0.15976,62594.0,62589.0,0.0769]
[1728685845663,0.32098401,62594.0,62589.0,0.236671]
[1728685846366,0.32098401,62594.0,62590.0,0.159769]
[1728685846798,0.16122401,62593.0,62589.0,0.0769]
[1728685847017,0.15977,62590.0,62586.0,0.159779]
[1728685847246,0.15977,62590.0,62584.0,0.396467]
[1728685847247,0.16122401,62590.0,62584.0,0.401467]
[1728685847703,0.16122401,62590.0,62588.0,0.159774]
[1728685848376,0.16122401,62590.0,62589.0,0.001]
[1728685849082,0.16122401,62590.0,62589.0,0.159772]
[1728685849548,0.16322401,62590.0,62589.0,0.159772]
[1728685849982,0.16122401,62590.0,62589.0,0.159772]
[1728685851552,0.16322401,62590.0,62589.0,0.159772]
[1728685856535,0.16486401,62590.0,62589.0,0.159772]
[1728685856790,0.00364,62590.0,62589.0,0.48339476]
[1728685856993,0.00164,62590.0,62589.0,0.334272]
[1728685857404,0.00364,62590.0,62589.0,0.334272]
[1728685857596,0.00364,62590.0,62589.0,0.335272]
[1728685857833,0.00364,62590.0,62589.0,0.334272]
[1728685858476,0.00164,62590.0,62589.0,0.334272]
[1728685858931,0.00164,62590.0,62589.0,0.335272]
[1728685859147,0.00164,62590.0,62589.0,0.338272]
[1728685863065,0.00164,62590.0,62589.0,0.48739476]
[1728685864543,0.00164,62590.0,62589.0,0.43873057]
[1728685867901,0.00164,62590.0,62589.0,0.44073057]
[1728685868202,0.00164,62590.0,62589.0,0.43873057]
[1728685868444,0.00164,62590.0,62589.0,0.44373057]
[1728685868680,0.00164,62590.0,62589.0,0.44573057]
[1728685869179,0.00164,62590.0,62589.0,0.54618914]
[1728685869435,0.00164,62596.0,62595.0,0.244357]
[1728685869651,0.00164,62596.0,62595.0,0.54706874]
[1728685869875,0.00164,62596.0,62595.0,0.54387414]
[1728685870645,0.00164,62596.0,62595.0,0.54587414]
[1728685871234,0.00664,62596.0,62595.0,0.54587414]
[1728685872073,0.00964,62596.0,62595.0,0.54587414]
[1728685872276,0.00964,62596.0,62595.0,0.59370321]
[1728685872626,0.00164,62596.0,62595.0,0.59370321]
[1728685873036,0.00464,62596.0,62595.0,0.59370321]
[1728685873258,0.00164,62596.0,62595.0,0.54587414]
[1728685873662,0.00264,62596.0,62595.0,0.54987414]
[1728685873871,0.00264,62596.0,62595.0,0.57383728]
[1728685874083,0.00764,62596.0,62595.0,0.57383728]
[1728685874561,0.00264,62596.0,62595.0,0.57383728]
[1728685874703,0.00264,62596.0,62595.0,0.67629585]
[1728685874909,0.00264,62596.0,62595.0,0.57983728]
[1728685875122,0.00264,62596.0,62595.0,0.62974514]
[1728685875537,0.00264,62596.0,62595.0,0.73020371]
[1728685876160,0.00264,62596.0,62595.0,0.62974514]
[1728685876366,0.00264,62596.0,62595.0,0.73020371]
[1728685878457,0.1,62600.0,62599.0,0.164746]
[1728685878664,0.1,62600.0,62599.0,0.46922628]
[1728685878949,0.1,62600.0,62599.0,0.47122628]
[1728685879191,0.1,62600.0,62599.0,0.46922628]
[1728685879824,0.1,62600.0,62599.0,0.47122628]
[1728685880917,0.1,62600.0,62599.0,0.47322628]
[1728685881135,0.1,62600.0,62599.0,0.52314942]
[1728685881353,0.23664158,62606.0,62605.0,0.159731]
[1728685881578,0.0496394,62608.0,62605.0,0.159731]
[1728685881579,0.0496394,62608.0,62607.0,0.337926]
[1728685881801,0.00184,62609.0,62608.0,0.164723]
[1728685882020,0.00184,62609.0,62608.0,0.39279625]
[1728685882247,0.00184,62609.0,62608.0,0.3896023]
[1728685882452,0.00184,62609.0,62608.0,0.3916023]
[1728685882867,0.00284,62609.0,62608.0,0.50106087]
[1728685883010,0.00284,62609.0,62608.0,0.4006023]
[1728685883226,0.00284,62609.0,62608.0,0.45051662]
[1728685884359,0.1141152,62617.0,62615.0,0.005]
[1728685884646,0.1141152,62617.0,62616.0,0.36562014]
[1728685884887,0.1141152,62617.0,62616.0,0.54382014]
[1728685885123,0.1141152,62617.0,62616.0,0.61968907]
[1728685885607,0.04879988,62622.0,62621.0,0.005]
[1728685885826,0.04879988,62622.0,62621.0,0.26825114]
[1728685886549,0.04879988,62622.0,62621.0,0.56614294]
[1728685886778,0.04879988,62622.0,62621.0,0.57114294]
[1728685887007,0.04879988,62622.0,62621.0,0.57314294]
[1728685887269,0.0509843,62628.0,62625.0,0.3932259]
[1728685887496,0.0509843,62628.0,62625.0,0.65304991]
[1728685887746,0.00164,62628.0,62626.0,0.244278]
[1728685887968,0.14547964,62633.0,62632.0,0.164662]
[1728685888181,0.14547964,62633.0,62632.0,0.344862]
[1728685888438,0.14547964,62633.0,62632.0,0.65503191]
[1728685888666,0.14547964,62633.0,62632.0,0.3086079]
[1728685889162,0.14547964,62633.0,62632.0,0.1489459]
[1728685889399,0.14147964,62633.0,62632.0,0.3884079]
[1728685889642,0.46236365,62633.0,62632.0,0.0798]
[1728685890327,0.46536365,62633.0,62632.0,0.0798]
[1728685890791,0.14447964,62633.0,62632.0,0.239462]
[1728685891514,0.14847964,62633.0,62632.0,0.239462]
[1728685891956,0.14847964,62633.0,62632.0,0.0798]
[1728685893364,0.14847964,62633.0,62632.0,0.239462]
[1728685893674,0.14847964,62633.0,62632.0,0.24265503]
[1728685893908,0.14847964,62633.0,62632.0,0.244462]
[1728685894331,0.14847964,62633.0,62632.0,0.24765493]
[1728685895523,0.15011764,62633.0,62632.0,0.24765493]
[1728685895964,0.15011764,62633.0,62632.0,0.26264053]
[1728685896685,0.008638,62633.0,62632.0,0.26264053]
[1728685897588,0.000638,62633.0,62632.0,0.26264053]
[1728685898010,0.001638,62633.0,62632.0,0.31054535]
[1728685898225,0.001638,62633.0,62632.0,0.3105456]
[1728685898440,0.001638,62633.0,62632.0,0.26264053]
[1728685902010,0.001638,62633.0,62632.0,0.2594476]
[1728685903456,0.000638,62633.0,62632.0,0.2594476]
[1728685903976,0.000638,62633.0,62632.0,0.2604476]
[1728685904424,0.000638,62633.0,62632.0,0.30938067]
[1728685904660,0.000638,62633.0,62632.0,0.2664476]
[1728685904894,0.000638,62633.0,62632.0,0.2644476]
[1728685905364,0.000638,62633.0,62632.0,0.27044231]
[1728685905583,0.000638,62633.0,62632.0,0.32037251]
[1728685905831,0.000638,62633.0,62632.0,0.10578031]
[1728685905832,0.23916201,62633.0,62632.0,0.10578031]
[1728685906085,0.23916201,62633.0,62632.0,0.10578265]
[1728685906804,0.39882201,62633.0,62632.0,0.10078265]
[1728685907278,0.39882201,62633.0,62632.0,0.10378265]
[1728685907502,0.39882201,62633.0,62632.0,0.0828]
[1728685907503,0.49452201,62633.0,62632.0,0.0828]
[1728685907766,0.49452201,62633.0,62632.0,0.0798]
[1728685907984,0.49552201,62633.0,62632.0,0.0798]
[1728685908416,0.49562201,62633.0,62632.0,0.0798]
[1728685908865,0.49572201,62633.0,62632.0,0.0798]
[1728685909089,0.49472201,62633.0,62632.0,0.0798]
[1728685909316,0.49472201,62633.0,62632.0,0.0808]
[1728685910364,0.49472201,62633.0,62632.0,0.0818]
[1728685910365,0.50072201,62633.0,62632.0,0.0818]
[1728685911011,0.50072201,62633.0,62632.0,0.25640334]
[1728685911012,0.006838,62633.0,62632.0,0.25640334]
[1728685911231,0.006838,62633.0,62632.0,0.25959626]
[1728685911892,0.000838,62633.0,62632.0,0.25859626]
[1728685912118,0.000838,62633.0,62632.0,0.25759626]
[1728685912356,0.000838,62633.0,62632.0,0.26159626]
[1728685912596,0.000838,62633.0,62632.0,0.26159604]
[1728685912837,0.000838,62633.0,62632.0,0.26459604]
[1728685913878,0.000838,62633.0,62632.0,0.26059604]
[1728685914112,0.000838,62633.0,62632.0,0.26259604]
[1728685914308,0.000838,62633.0,62632.0,0.26659604]
[1728685915414,0.000838,62633.0,62632.0,0.26340334]
[1728685916045,0.000838,62633.0,62632.0,0.26340777]
[1728685917582,0.000838,62633.0,62632.0,0.2634102]
[1728685918453,0.000838,62633.0,62632.0,0.2642292]
[1728685920425,0.000838,62633.0,62632.0,0.26742187]
[1728685921301,0.000838,62633.0,62632.0,0.3442292]
[1728685921523,0.000838,62633.0,62632.0,0.329281]
[1728685921758,0.000838,62633.0,62632.0,0.34423026]
[1728685922406,0.000838,62633.0,62632.0,0.10456826]
[1728685922632,0.000838,62633.0,62632.0,0.089619]
[1728685923048,0.32172201,62633.0,62632.0,0.089619]
[1728685923282,0.47066791,62633.0,62632.0,0.089619]
[1728685923496,0.57066791,62633.0,62632.0,0.085619]
[1728685923945,0.57666791,62633.0,62632.0,0.081619]
[1728685924398,0.57066791,62633.0,62632.0,0.080619]
[1728685924614,0.57666791,62633.0,62632.0,0.081619]
[1728685924849,0.93353762,62633.0,62632.0,0.082619]
[1728685925061,0.97471298,62633.0,62632.0,0.081619]
[1728685925276,0.92894091,62633.0,62632.0,0.081619]
[1728685925557,0.93494091,62633.0,62632.0,0.082619]
[1728685925782,0.93494091,62633.0,62632.0,0.081619]
[1728685925999,0.93494091,62633.0,62611.0,0.23664158]
[1728685926000,0.259713,62612.0,62611.0,0.23664158]
[1728685926225,0.56988291,62612.0,62611.0,0.23664158]
[1728685926469,0.1,62611.0,62592.0,0.33445626]
[1728685926687,0.159739,62602.0,62592.0,0.01492726]
[1728685926914,0.159739,62602.0,62591.0,0.23664158]
[1728685926915,0.159756,62596.0,62591.0,0.23664158]
[1728685927136,0.319491,62600.0,62591.0,0.23664158]
[1728685927378,0.159749,62598.0,62593.0,0.159761]
[1728685927633,0.0752,62601.0,62590.0,0.320355]
[1728685927634,0.16122401,62597.0,62595.0,0.159755]
[1728685927854,0.16122401,62597.0,62591.0,0.319532]
[1728685928103,0.16122401,62597.0,62596.0,0.159754]
[1728685928323,0.001,62596.0,62595.0,0.159756]
[1728685928548,0.16122401,62597.0,62595.0,0.159756]
[1728685928984,0.16222401,62597.0,62595.0,0.165756]
[1728685929194,0.16222401,62597.0,62595.0,0.159756]
[1728685929697,0.16222401,62597.0,62593.0,0.322521]
[1728685929698,0.16222401,62597.0,62596.0,0.159754]
[1728685930822,0.16122401,62597.0,62596.0,0.159754]
[1728685931052,0.02501112,62605.0,62600.0,0.319487]
[1728685931271,0.02501112,62605.0,62597.0,0.319503]
[1728685931272,0.23664158,62602.0,62597.0,0.319503]
[1728685931508,0.16122401,62602.0,62601.0,0.159741]
[1728685933951,0.16322401,62602.0,62601.0,0.159741]
[1728685935475,0.002,62602.0,62601.0,0.159741]
[1728685935712,0.002,62602.0,62601.0,0.16293548]
[1728685936137,0.002,62602.0,62601.0,0.33913548]
[1728685936356,0.002,62602.0,62601.0,0.4848869]
[1728685936821,0.0499538,62610.0,62608.0,0.159723]
[1728685937326,0.259705,62616.0,62610.0,0.159716]
[1728685937575,0.16122401,62615.0,62613.0,0.15971]
[1728685938049,0.16122401,62615.0,62612.0,0.159712]
[1728685938348,0.16122401,62615.0,62609.0,0.31944]
[1728685938349,0.16122401,62615.0,62613.0,0.159711]
[1728685938753,0.16822401,62615.0,62613.0,0.001]
[1728685938970,0.16122401,62615.0,62614.0,0.159708]
[1728685939873,0.16122401,62615.0,62610.0,0.319433]
[1728685940095,0.16122401,62615.0,62611.0,0.479145]
[1728685940312,0.17322401,62615.0,62614.0,0.159708]
[1728685940560,0.17022401,62615.0,62613.0,0.001]
[1728685940776,0.32093201,62615.0,62608.0,0.319447]
[1728685940987,0.32693201,62615.0,62610.0,0.159717]
[1728685941204,0.32693201,62615.0,62611.0,0.159715]
[1728685941425,0.32293201,62615.0,62611.0,0.159715]
[1728685941857,0.32493201,62615.0,62609.0,0.319441]
[1728685942070,0.16522401,62615.0,62609.0,0.319441]
[1728685942303,0.16522401,62615.0,62612.0,0.159711]
[1728685942532,0.006,62615.0,62614.0,0.3086539]
[1728685942787,0.006,62615.0,62614.0,0.159708]
[1728685943725,0.002,62615.0,62614.0,0.159708]
[1728685943944,0.006,62615.0,62614.0,0.159708]
[1728685944174,0.004,62615.0,62614.0,0.159708]
[1728685944425,0.002,62615.0,62614.0,0.159708]
[1728685944668,0.0494571,62621.0,62614.0,0.003]
[1728685944906,0.21068111,62621.0,62617.0,0.1597]
[1728685945183,0.23664158,62619.0,62617.0,0.1597]
[1728685945405,0.16122401,62621.0,62617.0,0.1597]
[1728685946140,0.16122401,62621.0,62618.0,0.159698]
[1728685946370,0.16422401,62621.0,62616.0,0.319406]
[1728685946616,0.16522401,62621.0,62618.0,0.159698]
[1728685946866,0.16222401,62621.0,62619.0,0.159695]
[1728685947106,0.16222401,62621.0,62615.0,0.319407]
[1728685947107,0.16222401,62621.0,62618.0,0.159697]
[1728685947347,0.16522401,62621.0,62618.0,0.159697]
[1728685947800,0.16122401,62621.0,62619.0,0.159695]
[1728685948321,0.16522401,62621.0,62619.0,0.159695]
[1728685948561,0.16522401,62621.0,62620.0,0.159693]
[1728685948787,0.16422401,62621.0,62617.0,0.319399]
[1728685949017,0.16522401,62621.0,62617.0,0.319399]
[1728685949241,0.16522401,62621.0,62619.0,0.159695]
[1728685949430,0.16522401,62621.0,62619.0,0.159694]
[1728685949684,0.16222401,62621.0,62619.0,0.159694]
[1728685949949,0.16422401,62621.0,62619.0,0.159694]
[1728685950400,0.16422401,62621.0,62618.0,0.319395]
[1728685950401,0.16122401,62621.0,62618.0,0.319395]
[1728685950631,0.16422401,62621.0,62620.0,0.159693]
[1728685950861,0.003,62621.0,62620.0,0.159693]
[1728685951088,0.003,62621.0,62620.0,0.235493]
[1728685951311,0.004,62621.0,62620.0,0.23868642]
[1728685951546,0.003,62621.0,62620.0,0.23868642]
[1728685951790,0.23664158,62627.0,62626.0,0.159678]
[1728685952270,0.001638,62628.0,62625.0,0.31936]
[1728685952544,0.001638,62628.0,62627.0,0.159675]
[1728685952778,0.001638,62628.0,62625.0,0.159679]
[1728685953011,0.159675,62627.0,62626.0,0.001]
[1728685954352,0.159675,62627.0,62622.0,0.159687]
[1728685954576,0.159675,62627.0,62625.0,0.001]
[1728685954787,0.159675,62627.0,62623.0,0.159684]
[1728685954980,0.16122401,62627.0,62616.0,0.319404]
[1728685955252,0.159681,62625.0,62620.0,0.15969]
[1728685955489,0.159681,62625.0,62619.0,0.319389]
[1728685955706,0.16122401,62627.0,62625.0,0.002]
[1728685955926,0.32090001,62627.0,62625.0,0.002]
[1728685956148,0.32090001,62627.0,62623.0,0.159684]
[1728685956370,0.159681,62625.0,62621.0,0.159689]
[1728685957496,0.16122401,62627.0,62619.0,0.320209]
[1728685957749,0.32090101,62627.0,62623.0,0.159684]
[1728685958179,0.16122401,62627.0,62624.0,0.15968]
[1728685960278,0.16122401,62627.0,62624.0,0.16168]
[1728685961744,0.16122401,62627.0,62624.0,0.002]
[1728685961938,0.159678,62626.0,62624.0,0.002]
[1728685962763,0.159678,62626.0,62622.0,0.159687]
[1728685962981,0.159678,62626.0,62624.0,0.003]
[1728685963187,0.159678,62626.0,62624.0,0.004]
[1728685963394,0.16122401,62627.0,62624.0,0.163682]
[1728685963602,0.159678,62626.0,62624.0,0.004]
[1728685963819,0.16122401,62627.0,62624.0,0.004]
[1728685964030,0.16122401,62627.0,62624.0,0.163682]
[1728685964239,0.16122401,62627.0,62624.0,0.160682]
[1728685964682,0.16122401,62627.0,62624.0,0.161682]
[1728685967101,0.16117757,62627.0,62624.0,0.161682]
[1728685967535,0.16117757,62627.0,62624.0,0.002]
[1728685967755,0.16117757,62627.0,62625.0,0.159679]
[1728685967992,0.16117757,62627.0,62624.0,0.002]
[1728685968234,0.159679,62626.0,62624.0,0.002]
[1728685970001,0.32085257,62627.0,62624.0,0.002]
[1728685970432,0.32085257,62627.0,62624.0,0.003]
[1728685970651,0.32085257,62627.0,62624.0,0.001]
[1728685971082,0.32085257,62627.0,62623.0,0.159684]
[1728685971517,0.32085257,62627.0,62624.0,0.003]
[1728685972166,0.16117757,62627.0,62624.0,0.162682]
[1728685972605,0.16117757,62627.0,62624.0,0.164682]
[1728685972819,0.16117757,62627.0,62625.0,0.159679]
[1728685973713,0.16117757,62627.0,62624.0,0.005]
[1728685974154,0.16117757,62627.0,62624.0,0.159683]
[1728685974838,0.16117757,62627.0,62625.0,0.002]
[1728685975278,0.16117757,62627.0,62624.0,0.159683]
[1728685975493,0.16117757,62627.0,62624.0,0.161683]
[1728685976980,0.32085257,62627.0,62624.0,0.159683]
[1728685977157,0.32085457,62627.0,62622.0,0.159687]
[1728685977355,0.159678,62626.0,62625.0,0.002]
[1728685977557,0.159678,62626.0,62622.0,0.159687]
[1728685977959,0.159678,62626.0,62624.0,0.002]
[1728685977960,0.0002,62626.0,62624.0,0.002]
[1728685978164,0.0002,62626.0,62622.0,0.159687]
[1728685978368,0.159682,62625.0,62620.0,0.319383]
[1728685978656,0.159682,62625.0,62619.0,0.00082]
[1728685978657,0.0002,62626.0,62622.0,0.159686]
[1728685979683,0.159878,62626.0,62622.0,0.159686]
[1728685979895,0.159681,62625.0,62621.0,0.159688]
[1728685980115,0.159878,62626.0,62624.0,0.003]
[1728685980337,0.0002,62626.0,62622.0,0.001]
[1728685980568,0.0002,62626.0,62622.0,0.161506]
[1728685980812,0.0002,62626.0,62622.0,0.164506]
[1728685981001,0.0002,62626.0,62622.0,0.160506]
[1728685981655,0.159878,62626.0,62622.0,0.160506]
[1728685981899,0.39632258,62625.0,62624.0,0.003]
[1728685982129,0.65754659,62625.0,62624.0,0.003]
[1728685982347,0.42090501,62625.0,62624.0,0.003]
[1728685983283,0.259685,62623.0,62622.0,0.00082]
[1728685983553,0.42090901,62623.0,62622.0,0.00382]
[1728685983794,0.42090901,62623.0,62622.0,0.00082]
[1728685984679,0.42390901,62623.0,62622.0,0.00082]
[1728685986258,0.42890901,62623.0,62622.0,0.00082]
[1728685990059,0.44558991,62623.0,62622.0,0.00082]
[1728685992478,0.54601559,62623.0,62622.0,0.00082]
[1728685999307,0.44558991,62623.0,62622.0,0.00082]
[1728685999536,0.54601559,62623.0,62622.0,0.00082]
[1728685999995,0.44558991,62623.0,62622.0,0.00082]
[1728686000667,0.54601559,62623.0,62622.0,0.00082]
[1728686011705,0.57102007,62623.0,62622.0,0.00082]
[1728686018685,0.55433917,62623.0,62622.0,0.00082]
[1728686020675,0.45391349,62623.0,62622.0,0.00082]
[1728686020895,0.55433917,62623.0,62622.0,0.00082]
[1728686021120,0.19422849,62623.0,62622.0,0.00082]
[1728686021342,0.008,62623.0,62622.0,0.17722]
[1728686021563,0.008,62623.0,62622.0,0.336908]
[1728686022037,0.008,62623.0,62622.0,0.17722]
[1728686022543,0.167685,62623.0,62622.0,0.17722]
[1728686022756,0.008,62623.0,62622.0,0.17722]
[1728686023882,0.008,62623.0,62622.0,0.34010154]
[1728686024138,0.008,62623.0,62622.0,0.336908]
[1728686024815,0.003,62623.0,62622.0,0.336908]
[1728686025072,0.007,62623.0,62622.0,0.336908]
[1728686025481,0.003,62623.0,62622.0,0.336908]
[1728686026022,0.0002,62626.0,62622.0,0.17722]
[1728686026256,0.32190901,62623.0,62622.0,0.00082]
[1728686026513,0.32090901,62623.0,62622.0,0.00382]
[1728686026987,0.32190901,62623.0,62622.0,0.00982]
[1728686027223,0.32090901,62623.0,62622.0,0.00382]
[1728686027462,0.32090901,62623.0,62622.0,0.00682]
[1728686027669,0.32090901,62623.0,62622.0,0.00082]
[1728686028790,0.32090901,62623.0,62622.0,0.00382]
[1728686029219,0.32090901,62623.0,62622.0,0.00982]
[1728686029220,0.32190901,62623.0,62622.0,0.00982]
[1728686053188,0.16222401,62623.0,62622.0,0.00982]
[1728686053852,0.32190901,62623.0,62622.0,0.00982]
[1728686057842,0.16222401,62623.0,62622.0,0.00982]
[1728686058045,0.32190901,62623.0,62622.0,0.00982]
[1728686062103,0.32190901,62623.0,62622.0,0.0100269]
[1728686063853,0.001,62623.0,62622.0,0.27014058]
[1728686064072,0.001,62623.0,62622.0,0.4535341]
[1728686064295,0.001,62623.0,62622.0,0.3499149]
[1728686065201,0.001,62623.0,62622.0,0.39780274]
[1728686065643,0.001,62623.0,62622.0,0.3499149]
[1728686066339,0.001,62623.0,62622.0,0.3977914]
[1728686067240,0.001,62623.0,62622.0,0.3499149]
[1728686069236,0.001,62623.0,62622.0,0.1089269]
[1728686069684,0.001,62623.0,62622.0,0.2686149]
[1728686071868,0.001,62623.0,62622.0,0.1089269]
[1728686072083,0.42233469,62623.0,62622.0,0.0100269]
[1728686074041,0.32190901,62623.0,62622.0,0.0100269]
[1728686076612,0.32140005,62623.0,62622.0,0.0100269]
[1728686079987,0.33809258,62623.0,62622.0,0.0100269]
[1728686088110,0.33809258,62623.0,62622.0,0.1855269]
[1728686088111,0.01718357,62623.0,62622.0,0.1855269]
[1728686088327,0.01718357,62623.0,62622.0,0.3452149]